[Event "AUT 2nd BL Mitte 2021-22"]
[Site "Austria"]
[Date "2022.03.27"]
[Round "9.1"]
[White "Frank, Emanuel"]
[Black "Schnider, Gert"]
[Result "0-1"]
[ECO "A40"]
[WhiteElo "2169"]
[BlackElo "2417"]
[Annotator "ChessBase"]
[PlyCount "84"]
[EventDate "2021.10.21"]
[EventType "team-tourn"]
[EventCountry "AUT"]
[SourceTitle "playchess.com"]
[Source "ChessBase"]
[SourceQuality "1"]
[TimeControl "40/5400+30:1800+30"]

1. d4 {[%emt 0:00:03]} Nf6 {[%emt 0:00:03]} 2. c4 {[%emt 0:00:09]} e6 {[%emt 0:00:03]} 3. g3 {[%emt 0:00:12]} c5 {[%emt 0:00:04]} 4. d5 {[%emt 0:00:06]} exd5 {[%emt 0:00:03]} 5. cxd5 {[%emt 0:00:09]} b5 {[%emt 0:00:01]} 6. Nf3 {[%emt 0:01:44]} Bb7 {[%emt 0:02:07]} 7. e4 {[%emt 0:03:16]} Nxe4 {[%emt 0:00:09]} 8. Bg2 {[%emt 0:00:43]} Be7 {[%emt 0:19:39]} 9. O-O {[%emt 0:01:17]} O-O {[%emt 0:00:04]} 10. Re1 {[%emt 0:00:16]} f5 {[%emt 0:05:02]} 11. Nc3 {[%emt 0:07:13]} Nxc3 {[%emt 0:03:15]} 12. bxc3 {[%emt 0:02:30]} Bf6 {[%emt 0:00:01]} 13. Qb3 {[%emt 0:32:02]} a6 {[%emt 0:12:40]} 14. Bb2 {[%emt 0:05:43]} d6 {[%emt 0:05:06]} 15. a4 {[%emt 0:02:10]} c4 {[%emt 0:05:35]} 16. Qd1 {[%emt 0:01:25]} Nd7 {[%emt 0:01:24]} 17. axb5 {[%emt 0:14:54]} axb5 {[%emt 0:00:14]} 18. Nd4 {[%emt 0:01:06]} Rxa1 {[%emt 0:03:24]} 19. Bxa1 {[%emt 0:01:44]} Bxd4 {[%emt 0:01:56]} 20. Qxd4 {[%emt 0:00:22]} Qb6 {[%emt 0:01:14]} 21. Qf4 {[%emt 0:09:13]} Ne5 {[%emt 0:01:21]} 22. Rb1 {[%emt 0:04:07]} Nd3 {[%emt 0:03:52]} 23. Qe3 {[%emt 0:01:59]} Qxe3 {[%emt 0:00:08]} 24. fxe3 {[%emt 0:00:01]} Ra8 {[%emt 0:00:38]} 25. e4 {[%emt 0:02:35]} fxe4 {[%emt 0:01:48]} 26. Bxe4 {[%emt 0:00:01]} Nc5 {[%emt 0:00:09]} 27. Bg2 {[%emt 0:01:03]} Bc8 {[%emt 0:01:20]} 28. Bb2 {[%emt 0:02:01]} Bf5 {[%emt 0:01:23]} 29. Ra1 {[%emt 0:02:33]} Rxa1+ {[%emt 0:02:08]} 30. Bxa1 {[%emt 0:00:01]} Kf7 {[%emt 0:05:09]} 31. Bb2 {[%emt 0:02:19]} Na4 {[%emt 0:00:01]} 32. Ba3 {[%emt 0:00:06]} Nxc3 {[%emt 0:00:10]} 33. Bxd6 {[%emt 0:00:04]} Na2 {[%emt 0:00:11]} 34. Bf4 {[%emt 0:01:27]} Ke7 {[%emt 0:07:19]} 35. Be5 {[%emt 0:01:25]} c3 {[%emt 0:02:19]} 36. Bf1 {[%emt 0:01:48]} c2 {[%emt 0:01:50]} 37. d6+ {[%emt 0:00:16]} Ke6 {[%emt 0:01:50]} 38. Bf4 {[%emt 0:00:42]} c1=Q {[%emt 0:00:15]} 39. Bxc1 {[%emt 0:00:03]} Nxc1 {[%emt 0:00:03]} 40. Bxb5 {[%emt 0:00:00]} Kxd6 {[%emt 0:00:00]} 41. Kf2 {[%emt 0:00:14]} Ke5 {[%emt 0:00:17]} 42. Ke3 {[%emt 0:00:16]} Nb3 {[%emt 0:00:28]} 0-1

[Event "AUT 2nd BL Mitte 2021-22"]
[Site "Austria"]
[Date "2022.03.27"]
[Round "9.2"]
[White "Brinovec, David"]
[Black "Dappiano, Andrea"]
[Result "1-0"]
[ECO "A45"]
[WhiteElo "2260"]
[BlackElo "2255"]
[Annotator "ChessBase"]
[PlyCount "83"]
[EventDate "2021.10.21"]
[EventType "team-tourn"]
[EventCountry "AUT"]
[SourceTitle "playchess.com"]
[Source "ChessBase"]
[SourceQuality "1"]
[TimeControl "40/5400+30:1800+30"]

1. d4 {[%emt 0:00:08]} Nf6 {[%emt 0:00:07]} 2. Bf4 {[%emt 0:00:07]} e6 {[%emt 0:00:14]} 3. e3 {[%emt 0:00:14]} c5 {[%emt 0:00:19]} 4. c3 {[%emt 0:00:24]} Nc6 {[%emt 0:00:12]} 5. Nd2 {[%emt 0:00:19]} d5 {[%emt 0:00:04]} 6. Ngf3 {[%emt 0:00:17]} Bd6 {[%emt 0:00:05]} 7. Bg3 {[%emt 0:00:10]} O-O {[%emt 0:00:05]} 8. Bd3 {[%emt 0:00:09]} b6 {[%emt 0:00:06]} 9. O-O {[%emt 0:04:21]} Bxg3 {[%emt 0:00:06]} 10. hxg3 {[%emt 0:00:05]} Bb7 {[%emt 0:00:11]} 11. Qe2 {[%emt 0:02:26]} Re8 {[%emt 0:07:26]} 12. Ne5 {[%emt 0:06:21]} Nxe5 {[%emt 0:01:37]} 13. dxe5 {[%emt 0:00:05]} Nd7 {[%emt 0:04:53]} 14. f4 {[%emt 0:03:18]} f6 {[%emt 0:13:41]} 15. Qh5 {[%emt 0:06:37]} f5 {[%emt 0:00:05]} 16. Nf3 {[%emt 0:02:33]} Nf8 {[%emt 0:03:05]} 17. g4 {[%emt 0:03:42]} g6 {[%emt 0:00:13]} 18. Qh3 {[%emt 0:00:05]} Re7 {[%emt 0:03:24]} 19. Rad1 {[%emt 0:01:05]} b5 {[%emt 0:13:21]} 20. gxf5 {[%emt 0:02:37]} gxf5 {[%emt 0:00:12]} 21. Ng5 {[%emt 0:02:18]} Qb6 {[%emt 0:04:19]} 22. Kh2 {[%emt 0:04:12]} Rg7 {[%emt 0:07:58]} 23. Rg1 {[%emt 0:02:19]} d4 {[%emt 0:10:39]} 24. g4 {[%emt 0:15:14]} dxe3 {[%emt 0:01:43]} 25. gxf5 {[%emt 0:02:24]} e2 {[%emt 0:03:05]} 26. Bxe2 {[%emt 0:02:16]} c4 {[%emt 0:01:50]} 27. Rd4 {[%emt 0:01:14]} exf5 {[%emt 0:06:38]} 28. Qxf5 {[%emt 0:00:52]} Qh6+ {[%emt 0:04:23]} 29. Qh3 {[%emt 0:01:28]} Qxh3+ {[%emt 0:01:06]} 30. Nxh3 {[%emt 0:00:38]} Ng6 {[%emt 0:01:02]} 31. Bh5 {[%emt 0:01:10]} Rf8 {[%emt 0:01:07]} 32. Bxg6 {[%emt 0:00:12]} hxg6 {[%emt 0:00:16]} 33. Ng5 Re7 {[%emt 0:00:56]} 34. Kg3 {[%emt 0:00:54]} Kg7 {[%emt 0:01:48]} 35. Rgd1 {[%emt 0:00:23]} Bc8 {[%emt 0:03:17]} 36. Rh1 {[%emt 0:03:53]} Kg8 {[%emt 0:00:06]} 37. Ne4 {[%emt 0:00:32]} Bb7 {[%emt 0:01:54]} 38. Nf6+ {[%emt 0:00:42]} Rxf6 {[%emt 0:00:02]} 39. exf6 {[%emt 0:00:05]} Re3+ {[%emt 0:00:02]} 40. Kf2 {[%emt 0:00:00]} Rf3+ {[%emt 0:00:00]} 41. Ke2 {[%emt 0:00:18]} Rd3 {[%emt 0:01:15]} 42. f7+ {[%emt 0:00:47]} 1-0

[Event "AUT 2nd BL Mitte 2021-22"]
[Site "Austria"]
[Date "2022.03.27"]
[Round "9.3"]
[White "Riemelmoser, Franz"]
[Black "Perhinig, Robert"]
[Result "1/2-1/2"]
[ECO "A35"]
[WhiteElo "2244"]
[BlackElo "2225"]
[Annotator "ChessBase"]
[PlyCount "117"]
[EventDate "2021.10.21"]
[EventType "team-tourn"]
[EventCountry "AUT"]
[SourceTitle "playchess.com"]
[Source "ChessBase"]
[SourceQuality "1"]
[TimeControl "40/5400+30:1800+30"]

1. c4 {[%emt 0:01:15]} c5 {[%emt 0:01:13]} 2. Nf3 {[%emt 0:00:20]} Nf6 {[%emt 0:00:04]} 3. Nc3 {[%emt 0:00:12]} Nc6 {[%emt 0:00:09]} 4. e3 {[%emt 0:00:11]} g6 {[%emt 0:00:47]} 5. d4 {[%emt 0:00:09]} cxd4 {[%emt 0:00:22]} 6. exd4 d5 {[%emt 0:00:48]} 7. cxd5 {[%emt 0:00:25]} Nxd5 {[%emt 0:00:05]} 8. Qb3 {[%emt 0:00:28]} Nxc3 {[%emt 0:02:58]} 9. Bc4 {[%emt 0:01:07]} Nd5 {[%emt 0:02:40]} 10. Bxd5 {[%emt 0:00:32]} e6 {[%emt 0:00:13]} 11. Bxc6+ {[%emt 0:00:23]} bxc6 {[%emt 0:00:04]} 12. O-O {[%emt 0:01:01]} Qd5 {[%emt 0:04:15]} 13. Qc2 {[%emt 0:03:27]} Bg7 {[%emt 0:00:57]} 14. Be3 {[%emt 0:00:15]} O-O {[%emt 0:01:34]} 15. Rfc1 {[%emt 0:00:57]} Bd7 {[%emt 0:00:36]} 16. Qc4 {[%emt 0:01:46]} Qxc4 {[%emt 0:03:40]} 17. Rxc4 {[%emt 0:00:11]} Rfd8 {[%emt 0:00:29]} 18. Rac1 {[%emt 0:01:29]} Be8 {[%emt 0:00:27]} 19. h3 {[%emt 0:01:27]} Rd5 {[%emt 0:01:02]} 20. Rb4 {[%emt 0:03:19]} Rdd8 {[%emt 0:03:28]} 21. b3 a5 {[%emt 0:04:48]} 22. Rb7 {[%emt 0:04:21]} a4 {[%emt 0:02:13]} 23. b4 {[%emt 0:00:57]} Rab8 {[%emt 0:06:21]} 24. Rxb8 {[%emt 0:00:16]} Rxb8 {[%emt 0:00:03]} 25. a3 h6 {[%emt 0:04:50]} 26. Bf4 {[%emt 0:13:26]} Rd8 {[%emt 0:03:30]} 27. Rc5 {[%emt 0:02:01]} Bxd4 {[%emt 0:04:16]} 28. Nxd4 {[%emt 0:04:19]} Rxd4 {[%emt 0:00:05]} 29. Bxh6 {[%emt 0:00:11]} Rd3 {[%emt 0:05:08]} 30. Ra5 {[%emt 0:01:20]} Kh7 {[%emt 0:03:13]} 31. Bg5 {[%emt 0:03:35]} Rd5 {[%emt 0:01:29]} 32. Be3 {[%emt 0:00:34]} Rxa5 {[%emt 0:03:21]} 33. bxa5 {[%emt 0:00:08]} c5 {[%emt 0:00:26]} 34. Bxc5 {[%emt 0:00:12]} Kg7 {[%emt 0:00:36]} 35. h4 {[%emt 0:02:10]} Kf6 {[%emt 0:00:31]} 36. a6 {[%emt 0:03:37]} Kf5 {[%emt 0:01:27]} 37. a7 {[%emt 0:00:18]} Bc6 {[%emt 0:00:03]} 38. f3 {[%emt 0:00:20]} e5 {[%emt 0:01:44]} 39. g4+ {[%emt 0:00:49]} Ke6 {[%emt 0:01:20]} 40. Kf2 {[%emt 0:00:00]} f5 {[%emt 0:00:00]} 41. Ke3 {[%emt 0:02:00]} e4 {[%emt 0:01:00]} 42. h5 {[%emt 0:02:33]} gxh5 {[%emt 0:02:15]} 43. gxh5 {[%emt 0:00:16]} exf3 {[%emt 0:00:13]} 44. Kf4 {[%emt 0:00:23]} Kf7 {[%emt 0:01:13]} 45. Ke5 {[%emt 0:05:08]} Kg7 {[%emt 0:00:31]} 46. Kxf5 {[%emt 0:01:57]} Kh7 {[%emt 0:00:52]} 47. Be3 {[%emt 0:00:23]} Ba8 {[%emt 0:00:43]} 48. Ke6 {[%emt 0:01:21]} f2 {[%emt 0:00:12]} 49. Bxf2 {[%emt 0:00:09]} Kh6 {[%emt 0:00:03]} 50. Kd6 {[%emt 0:00:14]} Kxh5 {[%emt 0:00:06]} 51. Kc5 {[%emt 0:04:58]} Kg6 {[%emt 0:00:17]} 52. Kb5 {[%emt 0:00:05]} Kf7 {[%emt 0:00:13]} 53. Kxa4 {[%emt 0:00:08]} Ke8 {[%emt 0:00:07]} 54. Kb5 {[%emt 0:00:07]} Kd7 {[%emt 0:00:07]} 55. Kb6 {[%emt 0:00:22]} Kc8 {[%emt 0:00:04]} 56. Bg1 {[%emt 0:00:07]} Bg2 {[%emt 0:00:08]} 57. Bf2 {[%emt 0:00:06]} Bf3 {[%emt 0:00:03]} 58. Bg1 {[%emt 0:00:07]} Bg2 {[%emt 0:00:03]} 59. Bf2 1/2-1/2

[Event "AUT 2nd BL Mitte 2021-22"]
[Site "Austria"]
[Date "2022.03.27"]
[Round "9.4"]
[White "Watzka, Horst"]
[Black "Feinig, Mario"]
[Result "1/2-1/2"]
[ECO "B31"]
[WhiteElo "2171"]
[BlackElo "2128"]
[Annotator "NA"]
[PlyCount "79"]
[EventDate "2021.10.21"]
[EventType "team-tourn"]
[EventCountry "AUT"]
[SourceTitle "playchess.com"]
[Source "ChessBase"]
[SourceQuality "1"]
[TimeControl "40/5400+30:1800+30"]

1. e4 {[%emt 0:00:19]} c5 {[%emt 0:00:08]} 2. Nf3 {[%emt 0:00:08]} Nc6 {[%emt 0:00:10]} 3. Bb5 {[%emt 0:04:30]} g6 {[%emt 0:00:21]} 4. O-O {[%emt 0:05:51]} Bg7 {[%emt 0:00:05]} 5. d3 {[%emt 0:03:58]} e5 {[%emt 0:12:04]} 6. Bxc6 {[%emt 0:02:23]} dxc6 {[%emt 0:00:02]} 7. a4 {[%emt 0:00:47]} a5 {[%emt 0:00:20]} 8. Na3 {[%emt 0:04:28]} Qc7 {[%emt 0:01:09]} 9. Be3 {[%emt 0:01:45]} b6 {[%emt 0:03:02]} 10. Nc4 {[%emt 0:03:23]} Be6 {[%emt 0:00:17]} 11. Nfd2 {[%emt 0:02:23]} Rb8 {[%emt 0:18:16]} 12. f4 {[%emt 0:01:12]} f6 {[%emt 0:01:36]} 13. Qf3 {[%emt 0:07:01]} Ne7 {[%emt 0:08:32]} 14. fxe5 {[%emt 0:00:20]} fxe5 {[%emt 0:00:10]} 15. Qg3 {[%emt 0:00:56]} Bf7 {[%emt 0:04:46]} 16. Bg5 $18 {[%emt 0:10:34]} b5 {[%emt 0:34:01]} 17. Ne3 {[%emt 0:04:46]} h6 {[%emt 0:05:09]} 18. Bf6 {[%emt 0:00:19]} O-O {[%emt 0:00:51]} 19. Bxg7 {[%emt 0:00:14]} Kxg7 {[%emt 0:00:03]} 20. b3 {[%emt 0:01:30]} Be6 {[%emt 0:00:58]} 21. Nf3 {[%emt 0:03:02]} Rf6 {[%emt 0:05:43]} 22. Qxe5 {[%emt 0:04:50]} Qxe5 {[%emt 0:00:01]} 23. Nxe5 {[%emt 0:00:15]} Rxf1+ {[%emt 0:00:10]} 24. Kxf1 {[%emt 0:01:10]} Kf6 {[%emt 0:00:21]} 25. Nf3 {[%emt 0:01:06]} c4 {[%emt 0:00:19]} 26. Nd4 {[%emt 0:08:54]} cxb3 {[%emt 0:00:01]} 27. cxb3 {[%emt 0:00:26]} bxa4 {[%emt 0:00:46]} 28. Rxa4 {[%emt 0:00:22]} Bxb3 {[%emt 0:00:18]} 29. Rxa5 {[%emt 0:00:18]} Be6 {[%emt 0:01:53]} 30. Rc5 {[%emt 0:03:45]} Rd8 {[%emt 0:01:19]} 31. Nxe6 {[%emt 0:02:17]} Kxe6 {[%emt 0:00:02]} 32. Ke2 {[%emt 0:00:31]} Ra8 {[%emt 0:01:15]} 33. Rc2 {[%emt 0:04:26]} Ra4 {[%emt 0:00:01]} 34. Nc4 {[%emt 0:01:35]} g5 {[%emt 0:00:29]} 35. Ne3 {[%emt 0:01:41]} Ra5 {[%emt 0:00:52]} 36. Ng4 {[%emt 0:05:39]} h5 {[%emt 0:00:14]} 37. Ne3 {[%emt 0:00:04]} c5 {[%emt 0:01:40]} 38. Kf2 {[%emt 0:02:51]} Nc6 {[%emt 0:00:52]} 39. Nf5 {[%emt 0:01:33]} Ke5 {[%emt 0:00:54]} 40. Ke3 {[%emt 0:00:00]} 1/2-1/2

[Event "AUT 2nd BL Mitte 2021-22"]
[Site "Austria"]
[Date "2022.03.27"]
[Round "9.5"]
[White "Heindl, Matthias"]
[Black "Elpons, Walter"]
[Result "1-0"]
[ECO "A00"]
[WhiteElo "2234"]
[BlackElo "1932"]
[Annotator "ChessBase"]
[PlyCount "103"]
[EventDate "2021.10.21"]
[EventType "team-tourn"]
[EventCountry "AUT"]
[SourceTitle "playchess.com"]
[Source "ChessBase"]
[SourceQuality "1"]
[TimeControl "40/5400+30:1800+30"]

1. Nc3 {[%emt 0:00:26]} d5 {[%emt 0:00:56]} 2. e4 {[%emt 0:00:15]} dxe4 {[%emt 0:01:58]} 3. Nxe4 {[%emt 0:01:16]} e5 {[%emt 0:01:08]} 4. Bc4 {[%emt 0:09:00]} Bf5 {[%emt 0:05:23]} 5. Qf3 {[%emt 0:09:59]} Nh6 {[%emt 0:03:12]} 6. d3 {[%emt 0:03:51]} Bxe4 {[%emt 0:03:12]} 7. dxe4 {[%emt 0:00:22]} Qe7 {[%emt 0:06:53]} 8. c3 {[%emt 0:05:48]} g6 {[%emt 0:20:58]} 9. Bxh6 {[%emt 0:02:01]} Bxh6 {[%emt 0:00:08]} 10. Qh3 {[%emt 0:00:10]} Bg7 {[%emt 0:14:00]} 11. Qc8+ {[%emt 0:00:27]} Qd8 {[%emt 0:00:08]} 12. Qxb7 {[%emt 0:00:04]} Nd7 {[%emt 0:00:54]} 13. Rd1 {[%emt 0:03:08]} Rb8 {[%emt 0:02:03]} 14. Qd5 {[%emt 0:00:59]} Qe7 {[%emt 0:03:12]} 15. Bb5 {[%emt 0:01:24]} Rd8 {[%emt 0:02:26]} 16. Nf3 {[%emt 0:00:13]} Qe6 {[%emt 0:01:56]} 17. Qxe6+ {[%emt 0:03:51]} fxe6 {[%emt 0:00:12]} 18. Rxd7 {[%emt 0:00:37]} Rxd7 {[%emt 0:00:11]} 19. Ke2 {[%emt 0:00:14]} Ke7 {[%emt 0:00:19]} 20. Bxd7 {[%emt 0:00:06]} Kxd7 {[%emt 0:00:17]} 21. Rd1+ {[%emt 0:00:05]} Ke7 {[%emt 0:01:40]} 22. Kd3 {[%emt 0:04:51]} Rd8+ {[%emt 0:00:54]} 23. Kc2 {[%emt 0:00:06]} Rf8 {[%emt 0:00:50]} 24. Kb3 {[%emt 0:00:23]} g5 {[%emt 0:01:03]} 25. Rd2 {[%emt 0:04:50]} g4 {[%emt 0:00:37]} 26. Ne1 {[%emt 0:00:18]} Bh6 {[%emt 0:00:57]} 27. Re2 {[%emt 0:00:31]} Rd8 {[%emt 0:01:54]} 28. Kc4 {[%emt 0:05:48]} Rd1 {[%emt 0:02:01]} 29. Nd3 {[%emt 0:03:10]} Kd6 {[%emt 0:03:42]} 30. Re1 {[%emt 0:10:39]} Rd2 {[%emt 0:00:39]} 31. g3 {[%emt 0:08:01]} Bg7 {[%emt 0:06:10]} 32. a3 {[%emt 0:03:27]} a5 {[%emt 0:05:14]} 33. a4 {[%emt 0:01:03]} Kc6 {[%emt 0:01:08]} 34. b4 {[%emt 0:02:42]} Ra2 {[%emt 0:01:27]} 35. bxa5 {[%emt 0:05:27]} Rxa4+ {[%emt 0:00:36]} 36. Nb4+ {[%emt 0:00:07]} Kb7 {[%emt 0:00:37]} 37. Kb5 {[%emt 0:01:00]} Ra3 {[%emt 0:00:38]} 38. a6+ {[%emt 0:01:07]} Kc8 {[%emt 0:03:59]} 39. Re2 {[%emt 0:05:56]} Bf8 {[%emt 0:00:36]} 40. Re3 {[%emt 0:00:00]} Bd6 {[%emt 0:00:00]} 41. f3 {[%emt 0:22:19]} h5 {[%emt 0:05:00]} 42. fxg4 {[%emt 0:01:18]} hxg4 {[%emt 0:01:03]} 43. Nc2 {[%emt 0:03:22]} Ra2 {[%emt 0:01:49]} 44. Re2 {[%emt 0:00:18]} Rb2+ {[%emt 0:07:31]} 45. Kc4 {[%emt 0:00:14]} Ra2 {[%emt 0:00:21]} 46. Rg2 {[%emt 0:04:17]} Rxa6 {[%emt 0:04:02]} 47. Ne3 {[%emt 0:00:35]} c5 {[%emt 0:08:31]} 48. Nxg4 {[%emt 0:02:13]} Ra4+ {[%emt 0:00:18]} 49. Kb5 {[%emt 0:03:11]} Rxe4 {[%emt 0:00:46]} 50. Nf6 {[%emt 0:00:07]} Re1 {[%emt 0:01:08]} 51. Kc6 {[%emt 0:00:06]} Be7 {[%emt 0:01:43]} 52. Ra2 {[%emt 0:00:32]} 1-0

[Event "AUT 2nd BL Mitte 2021-22"]
[Site "Austria"]
[Date "2022.03.27"]
[Round "9.6"]
[White "Strobl, Samuel"]
[Black "Holzmann, Joerg"]
[Result "1-0"]
[ECO "B48"]
[WhiteElo "1899"]
[BlackElo "2180"]
[Annotator "NA"]
[PlyCount "65"]
[EventDate "2021.10.21"]
[EventType "team-tourn"]
[EventCountry "AUT"]
[SourceTitle "playchess.com"]
[Source "ChessBase"]
[SourceQuality "1"]
[TimeControl "40/5400+30:1800+30"]

1. e4 {[%emt 0:00:03]} c5 {[%emt 0:00:01]} 2. Nf3 {[%emt 0:00:07]} e6 {[%emt 0:00:04]} 3. d4 {[%emt 0:00:05]} cxd4 {[%emt 0:00:02]} 4. Nxd4 {[%emt 0:00:09]} Nc6 {[%emt 0:00:18]} 5. Nc3 {[%emt 0:02:22]} Qc7 {[%emt 0:00:35]} 6. Be3 {[%emt 0:00:58]} a6 {[%emt 0:00:19]} 7. Qd2 {[%emt 0:02:30]} Nf6 {[%emt 0:01:03]} 8. f3 {[%emt 0:02:03]} b5 {[%emt 0:04:57]} 9. g4 {[%emt 0:04:10]} Bb7 {[%emt 0:05:04]} 10. Be2 {[%emt 0:02:30]} Be7 {[%emt 0:01:16]} 11. O-O-O {[%emt 0:07:18]} Nxd4 {[%emt 0:02:39]} 12. Bxd4 {[%emt 0:05:13]} b4 {[%emt 0:05:50]} 13. Na4 {[%emt 0:02:02] [#]} d5 {[%emt 0:02:55]} (13... Nxe4 $1 $11 14. fxe4 Bxe4) 14. Nb6 {[%emt 0:11:58]} Rd8 {[%emt 0:02:28]} 15. e5 $1 {[%emt 0:00:26]} Nd7 {[%emt 0:00:18]} 16. Nxd7 {[%emt 0:00:26]} Qxd7 {[%emt 0:01:19]} 17. f4 {[%emt 0:02:32]} O-O {[%emt 0:05:55]} (17... a5 $14) 18. Bd3 {[%emt 0:05:25]} f6 {[%emt 0:07:40]} 19. f5 {[%emt 0:05:33]} (19. exf6 $16 Bxf6 20. Bc5 (20. Qxb4 Be7 $16)) 19... fxe5 {[%emt 0:03:54]} 20. Bxe5 {[%emt 0:00:31]} Bd6 {[%emt 0:02:32]} 21. Rhe1 {[%emt 0:06:37]} Bxe5 {[%emt 0:01:57]} 22. Rxe5 {[%emt 0:00:15]} exf5 $18 {[%emt 0:00:35]} 23. Bxf5 {[%emt 0:00:38]} Qd6 {[%emt 0:01:11]} 24. Rde1 {[%emt 0:07:42]} Rf6 {[%emt 0:19:54]} 25. Re7 {[%emt 0:06:14]} Bc8 {[%emt 0:03:48]} 26. Qg5 {[%emt 0:03:05]} g6 {[%emt 0:08:07]} 27. Qh6 {[%emt 0:01:47]} Rf7 {[%emt 0:01:57]} 28. Rxf7 {[%emt 0:00:21]} Kxf7 {[%emt 0:00:08]} 29. Qxh7+ {[%emt 0:00:11]} Kf8 {[%emt 0:00:12]} 30. Bxg6 {[%emt 0:01:49]} Qf6 {[%emt 0:01:15]} 31. Qh6+ {[%emt 0:06:20]} Qg7 {[%emt 0:03:37]} 32. Rf1+ {[%emt 0:00:27]} Kg8 {[%emt 0:00:29]} 33. Bf7+ {[%emt 0:00:20]} 1-0

[Event "AUT 2nd BL Mitte 2021-22"]
[Site "Austria"]
[Date "2022.03.27"]
[Round "9.7"]
[White "Heinemann, Thies"]
[Black "Saric, Ante"]
[Result "1/2-1/2"]
[ECO "C07"]
[WhiteElo "2495"]
[BlackElo "2514"]
[Annotator "ChessBase"]
[PlyCount "60"]
[EventDate "2021.10.21"]
[EventType "team-tourn"]
[EventCountry "AUT"]
[SourceTitle "playchess.com"]
[Source "ChessBase"]
[SourceQuality "1"]
[TimeControl "40/5400+30:1800+30"]

1. e4 {[%emt 0:00:03]} e6 {[%emt 0:00:05]} 2. d4 {[%emt 0:01:03]} d5 {[%emt 0:00:11]} 3. Nd2 {[%emt 0:00:05]} c5 {[%emt 0:00:05]} 4. exd5 {[%emt 0:00:24]} Qxd5 {[%emt 0:00:06]} 5. Ngf3 {[%emt 0:00:25]} cxd4 {[%emt 0:00:08]} 6. Bc4 {[%emt 0:00:13]} Qd6 {[%emt 0:00:05]} 7. O-O {[%emt 0:00:47]} Nf6 {[%emt 0:00:06]} 8. Nb3 {[%emt 0:00:40]} Nc6 {[%emt 0:00:06]} 9. Nbxd4 {[%emt 0:00:46]} Nxd4 {[%emt 0:00:09]} 10. Qxd4 {[%emt 0:04:04]} Qxd4 {[%emt 0:00:42]} 11. Nxd4 {[%emt 0:00:08]} Bd7 {[%emt 0:00:22]} 12. b3 {[%emt 0:04:24]} Bc5 {[%emt 0:01:41]} 13. Bb2 {[%emt 0:02:06]} O-O {[%emt 0:00:10]} 14. Nf3 {[%emt 0:03:05]} Rfd8 {[%emt 0:03:30]} 15. Ne5 {[%emt 0:13:12]} Be8 {[%emt 0:01:58]} 16. Be2 {[%emt 0:01:24]} Bd4 {[%emt 0:31:44]} 17. Bxd4 {[%emt 0:02:23]} Rxd4 {[%emt 0:00:05]} 18. Bf3 {[%emt 0:04:53]} Rc8 {[%emt 0:03:30]} 19. c4 {[%emt 0:03:58]} Rc5 {[%emt 0:03:45]} 20. Rfe1 {[%emt 0:01:15]} Nd7 {[%emt 0:00:38]} 21. Nxd7 {[%emt 0:02:26]} Rxd7 {[%emt 0:00:06]} 22. Red1 {[%emt 0:02:29]} Rcc7 {[%emt 0:01:26]} 23. Kf1 {[%emt 0:03:49]} Kf8 {[%emt 0:00:57]} 24. Ke2 {[%emt 0:02:43]} Ke7 {[%emt 0:01:52]} 25. Ke3 {[%emt 0:03:08]} Rxd1 {[%emt 0:07:00]} 26. Rxd1 {[%emt 0:01:43]} b5 {[%emt 0:02:54]} 27. Be2 {[%emt 0:01:02]} bxc4 {[%emt 0:00:24]} 28. Bxc4 {[%emt 0:00:10]} g5 {[%emt 0:01:15]} 29. g3 {[%emt 0:11:51]} h6 {[%emt 0:00:28]} 30. Rd4 {[%emt 0:03:05]} Bd7 {[%emt 0:01:04]} 1/2-1/2

[Event "AUT 2nd BL Mitte 2021-22"]
[Site "Austria"]
[Date "2022.03.27"]
[Round "9.8"]
[White "Antoniewski, Rafal"]
[Black "Frosch, Ronald"]
[Result "1/2-1/2"]
[ECO "B12"]
[WhiteElo "2465"]
[BlackElo "2265"]
[Annotator "ChessBase"]
[PlyCount "88"]
[EventDate "2021.10.21"]
[EventType "team-tourn"]
[EventCountry "AUT"]
[SourceTitle "playchess.com"]
[Source "ChessBase"]
[SourceQuality "1"]
[TimeControl "40/5400+30:1800+30"]

1. e4 {[%emt 0:00:08]} c6 {[%emt 0:00:06]} 2. d4 {[%emt 0:00:12]} d5 {[%emt 0:00:06]} 3. e5 {[%emt 0:00:05]} c5 {[%emt 0:00:06]} 4. Nf3 {[%emt 0:00:22]} e6 {[%emt 0:02:18]} 5. c3 {[%emt 0:01:37]} Bd7 {[%emt 0:00:13]} 6. Be2 {[%emt 0:02:49]} Nc6 {[%emt 0:00:19]} 7. O-O {[%emt 0:00:06]} Nge7 {[%emt 0:01:54]} 8. Na3 {[%emt 0:10:01]} Ng6 {[%emt 0:05:24]} 9. Nc2 {[%emt 0:02:29]} Be7 {[%emt 0:00:44]} 10. g3 {[%emt 0:00:39]} O-O {[%emt 0:14:53]} 11. h4 {[%emt 0:01:13]} f6 {[%emt 0:00:11]} 12. h5 {[%emt 0:01:28]} Ngxe5 {[%emt 0:00:06]} 13. dxe5 {[%emt 0:00:32]} fxe5 {[%emt 0:00:09]} 14. Nh2 {[%emt 0:13:11]} Qc7 {[%emt 0:09:05]} 15. Ne3 {[%emt 0:12:32]} Rad8 {[%emt 0:15:10]} 16. Nxd5 {[%emt 0:13:37]} exd5 {[%emt 0:00:03]} 17. Qxd5+ {[%emt 0:00:08]} Kh8 {[%emt 0:00:23]} 18. Qg2 {[%emt 0:00:04]} Bf5 {[%emt 0:08:29]} 19. Re1 {[%emt 0:01:36]} c4 {[%emt 0:06:00]} 20. Be3 {[%emt 0:00:43]} Bd3 21. Bf3 {[%emt 0:07:29]} h6 {[%emt 0:12:56]} 22. Be4 {[%emt 0:01:34]} Qd7 {[%emt 0:02:21]} 23. Rad1 {[%emt 0:03:20]} Qe8 {[%emt 0:04:16]} 24. Bxd3 {[%emt 0:02:21]} cxd3 {[%emt 0:00:18]} 25. Qe4 {[%emt 0:00:21]} Qxh5 {[%emt 0:02:01]} 26. Rxd3 {[%emt 0:00:08]} Rxd3 {[%emt 0:06:32]} 27. Qxd3 {[%emt 0:00:02]} Qf7 {[%emt 0:01:13]} 28. b3 {[%emt 0:01:54]} Bg5 {[%emt 0:00:14]} 29. Re2 {[%emt 0:03:32]} Rd8 {[%emt 0:03:22]} 30. Qe4 {[%emt 0:04:48]} Bxe3 {[%emt 0:00:42]} 31. Rxe3 {[%emt 0:00:29]} Qd5 {[%emt 0:03:58]} 32. Qh4 {[%emt 0:04:30]} Rf8 {[%emt 0:00:46]} 33. Qg4 {[%emt 0:05:23]} Qd2 {[%emt 0:01:10]} 34. Qe2 {[%emt 0:02:35]} Rd8 {[%emt 0:00:31]} 35. Kg2 {[%emt 0:02:26]} a5 {[%emt 0:01:01]} 36. Nf3 {[%emt 0:01:44]} Qxe2 {[%emt 0:00:56]} 37. Rxe2 {[%emt 0:00:03]} Rd3 {[%emt 0:00:17]} 38. Nxe5 {[%emt 0:00:40]} Rxc3 {[%emt 0:00:05]} 39. Nf7+ {[%emt 0:00:13]} Kh7 {[%emt 0:00:39]} 40. Nd6 {[%emt 0:00:00]} b6 {[%emt 0:00:00]} 41. Re6 {[%emt 0:06:37]} Nb4 {[%emt 0:07:24]} 42. Re2 {[%emt 0:05:14]} Rc6 {[%emt 0:04:05]} 43. Nb5 {[%emt 0:06:49]} Rc5 {[%emt 0:03:57]} 44. Nd6 {[%emt 0:04:02]} Rc6 {[%emt 0:00:07]} 1/2-1/2